fUSD/lending_fUSD_20240109
["ID","MTS","AMOUNT","RATE_DAILY","PERIOD"]
[310879299,1704763847808,-150.0,0.00022795,2]
[310879300,1704763847817,-150.0,0.00022797,2]
[310879303,1704763847828,-150.0,0.00022798,2]
[310879305,1704763847841,-150.0,0.00022799,2]
[310879306,1704763847851,-150.0,0.00022801,2]
[310879307,1704763847861,-1500.0,0.00022801,2]
[310879308,1704763847871,-150.0,0.00022803,2]
[310879309,1704763847881,-150.0,0.00022803,2]
[310879310,1704763847891,-150.0,0.00022804,2]
[310879311,1704763847902,-217.78370959,0.00022805,2]
[310879312,1704763847912,-150.0,0.00022806,2]
[310879313,1704763847922,-150.0,0.00022806,2]
[310879314,1704763847932,-150.0,0.00022807,2]
[310879316,1704763847944,-150.0,0.00022808,2]
[310879318,1704763847953,-150.0,0.00022814,2]
[310879320,1704763847964,-200.0,0.00022815,2]
[310879322,1704763847974,-200.0,0.00022816,2]
[310879324,1704763847984,-150.0,0.00022821,2]
[310879326,1704763847995,-150.0,0.00022823,2]
[310879328,1704763848005,-150.0,0.00022825,2]
[310879330,1704763848015,-150.0,0.00022826,2]
[310879332,1704763848025,-150.0,0.00022826,2]
[310879334,1704763848035,-150.0,0.00022827,2]
[310879337,1704763848047,-150.0,0.00022828,2]
[310879339,1704763848059,-150.0,0.00022828,2]
[310879341,1704763848069,-217.78370959,0.00022829,2]
[310879343,1704763848079,-150.0,0.00022829,2]
[310879345,1704763848089,-150.0,0.00022832,2]
[310879347,1704763848101,-150.0,0.00022835,2]
[310879349,1704763848111,-150.0,0.00022844,2]
[310879351,1704763848120,-150.0,0.00022845,2]
[310879353,1704763848130,-150.0,0.00022847,2]
[310879387,1704763848459,-150.0,0.00022849,2]
[310879390,1704763848483,-150.0,0.00022849,2]
[310879392,1704763848493,-150.0,0.00022851,2]
[310879394,1704763848503,-150.0,0.00022852,2]
[310879396,1704763848512,-217.78370959,0.00022853,2]
[310879398,1704763848522,-150.0,0.00022853,2]
[310879400,1704763848531,-150.0,0.00022854,2]
[310879402,1704763848540,-150.0,0.00022854,2]
[310879404,1704763848549,-150.0,0.00022855,2]
[310879406,1704763848558,-150.0,0.00022857,2]
[310879408,1704763848567,-150.0,0.00022858,2]
[310879410,1704763848577,-150.0,0.00022858,2]
[310879412,1704763848586,-270.10690298,0.00022862,2]
[310879414,1704763848595,-150.0,0.00022868,2]
[310879416,1704763848604,-217.78370959,0.00022876,2]
[310879418,1704763848614,-150.0,0.00022877,2]
[310879420,1704763848623,-150.0,0.00022879,2]
[310879422,1704763848633,-150.0,0.00022884,2]
[310879424,1704763848643,-150.0,0.00022886,2]
[310879426,1704763848653,-150.0,0.00022887,2]
[310879428,1704763848662,-150.0,0.00022891,2]
[310879430,1704763848672,-150.0,0.00022896,2]
[310879432,1704763848681,-150.0,0.00022896,2]
[310879434,1704763848690,-150.0,0.00022897,2]
[310879436,1704763848699,-150.0,0.00022899,2]
[310879438,1704763848708,-217.78370959,0.000229,2]
[310879440,1704763848718,-1480.78524425,0.000229,2]
[310879442,1704763848727,-150.0,0.00022901,2]
[310879444,1704763848737,-150.0,0.00022901,2]
[310879446,1704763848746,-1500.0,0.0002292,2]
[310879448,1704763848755,-150.0,0.00022924,2]
[310879450,1704763848764,-150.0,0.00022925,2]
[310879452,1704763848773,-157.3,0.00022925,2]
[310879454,1704763848782,-150.0,0.00022926,2]
[310879456,1704763848791,-150.0,0.00022927,2]
[310879458,1704763848800,-150.0,0.0002293,2]
[310879460,1704763848809,-150.0,0.00022931,2]
[310879462,1704763848819,-150.0,0.00022936,2]
[310879465,1704763848828,-150.0,0.00022937,2]
[310879467,1704763848837,-150.0,0.00022941,2]
[310879468,1704763848847,-150.0,0.00022944,2]
[310879471,1704763848857,-150.0,0.00022944,2]
[310879473,1704763848866,-150.0,0.00022948,2]
[310879475,1704763848875,-150.0,0.00022951,2]
[310879477,1704763848884,-150.0,0.00022954,2]
[310879479,1704763848893,-150.0,0.00022955,2]
[310879481,1704763848902,-150.0,0.00022956,2]
[310879483,1704763848912,-150.0,0.00022957,2]
[310879485,1704763848921,-150.0,0.00022959,2]
[310879487,1704763848930,-150.0,0.0002296,2]
[310879489,1704763848939,-150.0,0.00022969,2]
[310879491,1704763848948,-150.0,0.00022969,2]
[310879493,1704763848957,-150.0,0.00022977,2]
[310879495,1704763848967,-300.0,0.0002298,2]
[310879497,1704763848976,-150.0,0.00022983,2]
[310879499,1704763848986,-150.0,0.00022987,2]
[310879501,1704763848995,-150.0,0.00022987,2]
[310879503,1704763849004,-150.0,0.00022992,2]
[310879505,1704763849013,-158.5,0.00022993,2]
[310879507,1704763849023,-1500.0,0.00022993,2]
[310879509,1704763849032,-150.0,0.00022995,2]
[310879511,1704763849041,-150.0,0.00022996,2]
[310879513,1704763849051,-4159.53090114,0.00022997,2]
[310879515,1704763849060,-1274.82127793,0.00022998,2]
[310879517,1704763849069,-218.98325398,0.00022998,2]
[310879519,1704763849079,-155.0,0.00022998,2]
[310879521,1704763849088,-241.52141626,0.00022998,2]
[310879523,1704763849099,-865.47322948,0.00022998,2]
[310879525,1704763849109,-225.75610982,0.00022998,2]
[310879527,1704763849119,-3289.2523586,0.00022999,2]
[310879529,1704763849128,-150.0,0.00022999,2]
[310879531,1704763849137,-150.0,0.00022999,2]
[310879533,1704763849146,-215.85641535,0.00022999,2]
[310879535,1704763849156,-1018.66295717,0.00022999,2]
[310879537,1704763849166,-150.97388937,0.00022999,2]
[310879539,1704763849175,-183571.26885303,0.00023,2]
[310879542,1704763849191,-1500.0,0.00023,2]
[310879544,1704763849202,-2285.54984427,0.00023,2]
[310879891,1704763868126,180.31990398,0.00022,2]
[310879892,1704763877724,957.2687,0.00022442,2]
[310879893,1704763901065,295.99028758,0.00022998,7]
[310879894,1704763904967,4974.52166871,0.00021848,7]
[310879895,1704763944775,129935.3579,0.00022442,2]
[310879896,1704763956362,571.2226,0.00022442,2]
[310879897,1704763974792,150.49609074,0.00022,2]
[310879898,1704763992774,300.0,0.00022408,2]
[310879899,1704764005634,152.69,0.00022121,2]
[310879900,1704764023463,934.8523,0.00022442,2]
[310879901,1704764038734,161.62929309,0.00022464,2]
[310879902,1704764065040,522.74,0.0002206,2]
[310879903,1704764083805,166.31,0.0002206,2]
[310879904,1704764117718,2000.0,0.00022064,2]
[310879905,1704764122209,234.34,0.00022046,2]
[310879906,1704764160134,6514.59,0.00022047,2]
[310879907,1704764172190,173.48,0.0002209,2]
[310879908,1704764218794,459.49,0.0002013,2]
[310879909,1704764218855,459.49,0.00022394,2]
[310879910,1704764271282,175.28,0.00022275,2]
[310879911,1704764294481,632.97,0.00022083,2]
[310879929,1704764473569,186.23,0.000222,2]
[310879931,1704764504033,581.8,0.00021914,2]
[310879934,1704764525061,2000.0,0.00021929,2]
[310879936,1704764550476,163.22,0.00021931,2]
[310879937,1704764550685,163.22,0.00022479,2]
[310879938,1704764581774,176.95,0.00022071,2]
[310879941,1704764595354,165.55,0.00021911,2]
[310879943,1704764627799,12214.5,0.00021893,2]
[310879944,1704764633448,728.74026377,0.00021,2]
[310879946,1704764680197,413.54,0.00019948,2]
[310879947,1704764680411,413.54,0.00022212,2]
[310879948,1704764804673,165.13873563,0.00023288,4]
[310879949,1704764807946,630.72,0.00021909,2]
[310879950,1704764870753,163.6,0.0002208,2]
[310879951,1704764894240,1014.28,0.000222,2]
[310879960,1704764932313,363.83296486,0.00022997,10]
[310879961,1704764936217,534.56,0.00021931,2]
[310879962,1704764937398,201.91834383,0.00025,7]
[310879966,1704764961353,2000.0,0.00021931,2]
[310879973,1704764969061,159.73528399,0.00022429,2]
[310879984,1704765032187,-861.30312776,0.00022503,2]
[310879985,1704765032244,-138.69687224,0.00022503,2]
[310879986,1704765032253,-169.18207101,0.00022504,2]
[310879987,1704765032263,-515.39261491,0.00022504,2]
[310879988,1704765032272,-1652.36910103,0.00022521,2]
[310879989,1704765032286,-159.73528398,0.00022523,2]
[310879990,1704765032296,-4084.23315036,0.00022523,2]
[310879991,1704765032305,-67.09711004,0.00022529,2]
[310879992,1704765032318,-340.77241922,0.00022529,2]
[310879993,1704765032328,-150.0,0.0002253,2]
[310879994,1704765032338,-264.88529209,0.00022531,2]
[310879995,1704765032351,-765.0228798,0.00022531,2]
[310879996,1704765032363,-876.05082955,0.00022531,2]
[310879997,1704765032375,-318.3432,0.00022531,2]
[310879998,1704765032387,-1340.40618292,0.00022531,2]
[310879999,1704765032437,-13184.85344069,0.00022531,2]
[310880000,1704765032448,-23159.26,0.00022531,2]
[310880001,1704765032460,-549.35079271,0.00022531,2]
[310880002,1704765032491,-38326.23878068,0.00022531,2]
[310880003,1704765032500,-152.69,0.00022564,2]
[310880004,1704765032509,-159.73528398,0.00022617,2]
[310880005,1704765032519,-2567.38370967,0.00022663,2]
[310880006,1704765032528,-3462.51,0.00022663,2]
[310880007,1704765032537,-9999.99,0.00022663,2]
[310880008,1704765032547,-499.99,0.00022663,2]
[310880010,1704765032557,-163.6,0.00022674,2]
[310880012,1704765032567,-159.73528398,0.00022712,2]
[310880014,1704765032576,-150.0,0.00022762,2]
[310880016,1704765032586,-150.0,0.00022786,2]
[310880018,1704765032595,-150.0,0.00022787,2]
[310880020,1704765032606,-150.0,0.00022791,2]
[310880022,1704765032616,-159.73528398,0.00022806,2]
[310880024,1704765032625,-803.45,0.00022816,2]
[310880026,1704765032634,-184.39943381,0.00022816,2]
[310880028,1704765032643,-150.0,0.00022831,2]
[310880030,1704765032653,-630.72,0.00022887,2]
[310880031,1704765032662,-7500.0,0.00022898,2]
[310880032,1704765032672,-401.4751,0.00022898,2]
[310880033,1704765032682,-184.75737323,0.00022898,2]
[310880034,1704765032691,-1401.95948903,0.00022898,2]
[310880035,1704765032700,-423.59249196,0.00022898,2]
[310880036,1704765032709,-2123.00476545,0.00022898,2]
[310880037,1704765032718,-529.64549396,0.00022898,2]
[310880038,1704765032727,-173.09901602,0.000229,2]
[310880039,1704765032737,-159.73528398,0.000229,2]
[310880040,1704765032747,-1035.51643537,0.000229,2]
[310880041,1704765032756,-150.0,0.00022943,2]
[310880042,1704765032766,-156.86105425,0.00022996,2]
[310880043,1704765032775,-241.26485751,0.00022997,2]
[310880044,1704765032785,-1009829.62367506,0.00022998,2]
[310880045,1704765032794,-2148.58018069,0.00022998,2]
[310880047,1704765032803,-3290.01974421,0.00022999,2]
[310880049,1704765032812,-627338.97785907,0.00023,2]
[310880051,1704765032821,-346183.20986441,0.00023,2]
[310880055,1704765032842,-22095.27161832,0.00023,2]
[310880102,1704765039280,-597.65342385,0.00023,2]
[310880103,1704765039293,-395.01893363,0.00023,2]
[310880104,1704765039305,-1020.66126723,0.00023,2]
[310880105,1704765039335,-790.56003782,0.00023,2]
[310880106,1704765039347,-4447.81020263,0.00023,2]
[310880107,1704765039478,-5163.77298913,0.00023,2]
[310880108,1704765039491,-57181.87147267,0.00023,2]
[310880200,1704765040853,-637.26935831,0.00023,2]
[310880202,1704765040865,-1267.80842534,0.00023,2]
[310880209,1704765040917,-10423.5944825,0.00023,2]
[310880336,1704765042086,-998.486475,0.00023,2]
[310880338,1704765042097,-7379.82492997,0.00023,2]
[310880340,1704765042110,-8947.21879473,0.00023,2]
[310880342,1704765042122,-8943.78386462,0.00023,2]
[310880345,1704765042134,-9077.54866152,0.00023,2]
[310880347,1704765042145,-8943.84023489,0.00023,2]
[310880583,1704765044566,-488.72745544,0.00023,2]
[310880586,1704765044578,-1020.78894463,0.00023,2]
[310880588,1704765044589,-2453.59968473,0.00023,2]
[310880590,1704765044603,-1959.7562499,0.00023,2]
[310880593,1704765044620,-926.38502705,0.00023,2]
[310880603,1704765044765,-9.45827657,0.00023,2]
[310880604,1704765044793,-10235.54850531,0.00023,2]
[310880605,1704765044806,-510.5000003,0.00023,2]
[310880606,1704765044835,-923.37187108,0.00023,2]
[310880607,1704765044848,-1736.82125033,0.00023,2]
[310880630,1704765046434,-505.39793739,0.00023,2]
[310880631,1704765046664,-1057.5947343,0.00023,2]
[310880632,1704765052817,345.16069666,0.00023288,4]
[310880633,1704765094642,319.48290036,0.00022,2]
[310880634,1704765116461,2521.02199253,6.94e-05,2]
[310880635,1704765158649,220.22319646,0.0002211,2]
[310880636,1704765175348,1557.78370024,0.00015,14]
[310880637,1704765184883,250.0,0.00022039,2]
[310880641,1704765251012,12624.44878287,0.0002,2]
[310880642,1704765259360,180.76,0.00021949,2]
[310880644,1704765275182,386.16,0.00020027,2]
[310880645,1704765275387,386.16,0.00022291,2]
[310880646,1704765281124,407.82996162,0.00021753,7]
[310880648,1704765303120,5234.12583855,0.00021753,7]
[310880649,1704765329126,9044.28910808,0.00021753,7]
[310880650,1704765351157,9044.28910808,0.00021753,7]
[310880651,1704765362321,572.35,0.00021942,2]
[310880653,1704765364511,597.73,0.00021942,2]
[310880654,1704765369875,166.31,0.00021936,2]
[310880655,1704765371928,9044.28910808,0.00021753,7]
[310880656,1704765389135,737.72775989,0.00021753,7]
[310880657,1704765406052,180.61,0.00022155,2]
[310880659,1704765523866,242.08,0.00021943,2]
[310880661,1704765551234,2000.0,0.00021943,2]
[310880664,1704765587288,4680.0,0.00021943,2]
[310880665,1704765616862,199.5,0.00021951,2]
[310880666,1704765706961,351.76,0.00022,2]
[310880667,1704765710956,347.54,0.0002003,2]
[310880668,1704765711168,347.54,0.00022294,2]
[310880670,1704765809873,502.58861225,0.00022,2]
[310880671,1704765815965,557.88,0.00021945,2]
[310880672,1704765819751,542.12,0.0002194,2]
[310880673,1704765961985,164.39,0.00022154,2]
[310880674,1704765962547,163.15,0.00021935,2]
[310880675,1704765962785,163.15,0.000223,2]
[310880676,1704766084452,204.0,0.00022133,2]
[310880677,1704766084703,204.0,0.00023711,4]
[310880678,1704766180770,3141.8882364,0.00035,60]
[310880679,1704766188879,180.76,0.0002197,2]
[310880685,1704766231365,-331.62881422,0.00022526,2]
[310880687,1704766231376,-429.429511,0.00022526,2]
[310880689,1704766231422,-1554.57264498,0.00022526,2]
[310880690,1704766231431,-1000.0,0.00022527,2]
[310880691,1704766231440,-163.15,0.00022666,2]
[310880692,1704766231451,-163.80303796,0.00022669,2]
[310880693,1704766231461,-499.78210232,0.00022769,2]
[310880694,1704766231475,-150.0,0.00022799,2]
[310880695,1704766231484,-1000.0,0.000228,2]
[310880696,1704766231493,-411.8062,0.000228,2]
[310880697,1704766231503,-47184.6534,0.000228,2]
[310880698,1704766231512,-250.7148,0.000228,2]
[310880699,1704766231522,-668.10780765,0.000228,2]
[310880700,1704766231532,-2500.0,0.000228,2]
[310880701,1704766231541,-668.10780758,0.00022814,2]
[310880702,1704766231551,-500.0,0.00022815,2]
[310880703,1704766231560,-500.0,0.00022816,2]
[310880704,1704766231570,-200.0,0.00022816,2]
[310880705,1704766231580,-499.99,0.00022816,2]
[310880706,1704766231589,-668.10780758,0.00022829,2]
[310880707,1704766231598,-668.10780758,0.00022843,2]
[310880708,1704766231607,-668.10780758,0.00022857,2]
[310880709,1704766231616,-668.10780758,0.00022871,2]
[310880710,1704766231626,-668.10780758,0.00022886,2]
[310880711,1704766231635,-5022.68394226,0.00022898,2]
[310880712,1704766231649,-559.52944067,0.00022898,2]
[310880713,1704766231661,-492.84321093,0.00022898,2]
[310880714,1704766232984,-1424.94340614,0.00022898,2]
[310880715,1704766232994,-443.5349,0.00022898,2]
[310880716,1704766233003,-193.13712954,0.00022899,2]
[310880717,1704766233018,-4731.24209898,0.00022899,2]
[310880718,1704766233028,-364.17,0.00022899,2]
[310880719,1704766233037,-2828.73013203,0.000229,2]
[310880720,1704766233049,-2088.8298875,0.000229,2]
[310880721,1704766233062,-388.57521595,0.000229,2]
[310880722,1704766233102,-2084.03576571,0.000229,2]
[310880723,1704766233114,-315.2812933,0.000229,2]
[310880724,1704766233125,-584.599308,0.000229,2]
[310880725,1704766233137,-544.4995647,0.000229,2]
[310880733,1704766237552,-46493.99999998,0.000229,2]
[310880734,1704766237564,-657.08541377,0.000229,2]
[310880735,1704766237579,-1763.46970248,0.000229,2]
[310880736,1704766237590,-11239.75,0.000229,2]
[310880737,1704766237609,-405.65457929,0.000229,2]
[310880738,1704766237621,-517.6374,0.000229,2]
[310880739,1704766237632,-6253.65376991,0.000229,2]
[310880740,1704766237643,-289.4002629,0.000229,2]
[310880741,1704766237671,-258.61400001,0.000229,2]
[310880742,1704766237785,-48529.06090122,0.000229,2]
[310880743,1704766237796,-61574.79450325,0.000229,2]
[310880744,1704766237805,-522.04541506,0.000229,2]
[310880745,1704766237817,-6579.55878494,0.000229,2]
[310880746,1704766237826,-95867.724,0.000229,2]
[310880747,1704766237836,-163.80303796,0.000229,2]
[310880748,1704766237845,-668.10780758,0.000229,2]
[310880749,1704766237855,-36435.38976747,0.000229,2]
[310880750,1704766237867,-559.61619441,0.000229,2]
[310880751,1704766237878,-784.20550947,0.000229,2]
[310880752,1704766237901,-1036.00466843,0.000229,2]
[310880884,1704766239859,-4276.11594696,0.000229,2]
[310880885,1704766239975,-251.58,0.000229,2]
[310880886,1704766239989,-1642.9,0.000229,2]
[310880887,1704766240030,-452.25615153,0.000229,2]
[310880888,1704766240042,-359.45574608,0.000229,2]
[310880889,1704766240054,-638.32607188,0.000229,2]
[310880890,1704766240875,-991.64452545,0.000229,2]
[310880891,1704766240887,-1071.1478769,0.000229,2]
[310880898,1704766242393,-155.25750388,0.00022899,2]
[310880899,1704766242404,-15538.18193197,0.000229,2]
[310880900,1704766242415,-712.1471241,0.000229,2]
[310880901,1704766242426,-182.33193303,0.000229,2]
[310880902,1704766242437,-351.40723327,0.000229,2]
[310880903,1704766242447,-745.47908291,0.000229,2]
[310880904,1704766242458,-1142.15176387,0.000229,2]
[310880905,1704766242468,-4970.39,0.000229,2]
[310880906,1704766242479,-557.88,0.00022923,2]
[310880907,1704766242490,-3645.84730833,0.00022998,2]
[310880908,1704766242500,-384.12229964,0.00022998,2]
[310880909,1704766242510,-1802.26037903,0.00022998,2]
[310880910,1704766242519,-6270.87816541,0.00022998,2]
[310880911,1704766242531,-263.8973557,0.00022999,2]
[310880912,1704766242541,-997.13252912,0.00022999,2]
[310880913,1704766242550,-20889.52206021,0.00023,2]
[310880914,1704766242565,-666.41,0.00023,2]
[310880915,1704766242598,-1142.8425381,0.00023,2]
[310880916,1704766242611,-338.20311739,0.00023,2]
[310880917,1704766242624,-633.13267263,0.00023,2]
[310880918,1704766242636,-64174.34197775,0.00023,2]
[310880919,1704766242648,-5888.73668336,0.00023,2]
[310880920,1704766242660,-3967.67556143,0.00023,2]
[310880921,1704766242676,-14187.75831566,0.00023,2]
[310880922,1704766242687,-357.76128414,0.00023,2]
[310880924,1704766242867,-875.28641061,0.00023,2]
[310880925,1704766242878,-6120.94534268,0.00023,2]
[310880926,1704766242889,-256.12158064,0.00023,2]
[310880927,1704766242947,-776.61821534,0.00023,2]
[310880928,1704766242959,-432.81246575,0.00023,2]
[310880929,1704766242970,-682.68972309,0.00023,2]
[310880930,1704766242986,-591.92803933,0.00023,2]
[310880931,1704766242998,-5330.98758974,0.00023,2]
[310880932,1704766243009,-484.14546954,0.00023,2]
[310880933,1704766243022,-2172.25771036,0.00023,2]
[310880934,1704766243038,-500.0,0.00023,2]
[310880935,1704766243060,-1298.65792426,0.00023,2]
[310880936,1704766243072,-6649.251936,0.00023,2]
[310880937,1704766243083,-2992.89364074,0.00023,2]
[310880938,1704766243095,-340.519297,0.00023,2]
[310880947,1704766246017,-1000.0,0.00022899,2]
[310880948,1704766246027,-3390.18647242,0.00023,2]
[310880949,1704766246038,-1000.0,0.00023,2]
[310880950,1704766246062,-3829.309246,0.00023,2]
[310880951,1704766246129,-33104.72092268,0.00023,2]
[310880952,1704766246229,-3247.249995,0.00023,2]
[310880955,1704766246392,-403.71020529,0.00023,2]
[310880956,1704766246457,-405.81528365,0.00023,2]
[310880957,1704766246478,-233184.62348479,0.00023,2]
[310880958,1704766246488,-130446.1297081,0.00023,2]
[310880959,1704766246586,-809.73028551,0.00023,2]
[310880961,1704766254708,150.0,0.00022477,2]
[310880962,1704766256093,360.68558598,0.00022768,4]
[310880965,1704766279339,171.56690832,0.00022998,7]
[310880966,1704766323132,175.96,0.00022,2]
[310880967,1704766372096,164.75,0.00022093,2]
[310880968,1704766372294,164.75,0.00022209,2]
[310880969,1704766372574,164.75,0.00022325,2]
[310880970,1704766372847,164.75,0.00022441,2]
[310880971,1704766384781,1000.0,0.00022501,2]
[310880972,1704766392866,175.28,0.00022221,2]
[310880973,1704766411816,366.77,0.00020048,2]
[310880974,1704766412022,366.77,0.00022312,2]
[310880975,1704766416344,2141.64504361,0.00022501,2]
[310880976,1704766441107,2605.49881087,0.00022501,2]
[310880977,1704766453767,158.14,0.0001756,2]
[310880978,1704766455322,1000.0,0.00022501,2]
[310880979,1704766496860,1133.65156947,0.00022477,2]
[310880980,1704766525816,1000.0,0.00022501,2]
[310880981,1704766574607,20306.8917636,0.00035,60]
[310880982,1704766609986,9945.9882364,0.000312,120]
[310880983,1704766610305,1000.0,0.00022501,2]
[310880984,1704766672866,189.33,0.00021959,2]
[310880985,1704766688814,1000.0,0.00022501,2]
[310880986,1704766700924,1275.91457605,0.00022501,2]
[310880987,1704766700955,574.74674493,0.00022501,2]
[310880988,1704766701257,433.7,0.00021956,2]
[310880989,1704766726658,328.07434656,0.00022448,2]
[310880990,1704766763331,1000.0,0.00022501,2]
[310880991,1704766781177,156.35,0.00021908,2]
[310880992,1704766782913,164.37572502,0.00022447,2]
[310880993,1704766790064,153.62973459,0.00022444,2]
[310880994,1704766814212,158.69,0.0002185,2]
[310880995,1704766825407,163.6,0.00022064,2]
[310880996,1704766833858,479.8334489,0.00022501,2]
[310880997,1704766837423,166.31,0.00021854,2]
[310880998,1704766852163,338.38,0.00019928,2]
[310880999,1704766852379,338.38,0.00022192,2]
[310881000,1704766877757,2611.07082663,0.000225,2]
[310881001,1704766918901,618.0,0.0002186,2]
[310881002,1704766943626,175.96,0.00022,2]
[310881003,1704766966376,3024.7,0.00022446,2]
[310881004,1704766977734,1000.0,0.00021375,2]
[310881005,1704766993972,2000.0,0.00021842,2]
[310881006,1704767042304,218.71623104,0.00022441,2]
[310881007,1704767048052,218.71623104,0.00022444,2]
[310881008,1704767053978,218.71623104,0.00022446,2]
[310881009,1704767074548,1000.0,0.00022446,2]
[310881010,1704767093187,36976.702,0.00022446,2]
[310881011,1704767137739,653.04,0.00021876,2]
[310881012,1704767164535,204.0,0.00022289,2]
[310881013,1704767164926,97.67958041,0.00023929,4]
[310881014,1704767192864,171.42,0.00021854,2]
[310881015,1704767243981,162.54,0.00021859,2]
[310881016,1704767244184,162.54,0.00022406,2]
[310881017,1704767291512,399.76,0.00019973,2]
[310881018,1704767291740,399.76,0.00022237,2]
[310881019,1704767341216,609.61,0.00021868,2]
[310881020,1704767379141,221.62,0.00021877,2]
[310881040,1704767431565,-1000.0,0.00022534,2]
[310881041,1704767431574,-158.05558636,0.00022535,2]
[310881042,1704767431584,-293.87055503,0.00022544,2]
[310881043,1704767431593,-150.0,0.00022544,2]
[310881044,1704767431602,-5515.97390975,0.00022545,2]
[310881045,1704767431637,-264.55,0.00022545,2]
[310881046,1704767431649,-693.04575349,0.00022545,2]
[310881047,1704767431661,-2692.06977532,0.00022545,2]
[310881048,1704767431673,-2789.53472835,0.00022545,2]
[310881049,1704767431685,-3983.15854197,0.00022545,2]
[310881050,1704767431698,-1297.40718815,0.00022545,2]
[310881051,1704767431741,-2311.51,0.00022545,2]
[310881052,1704767431753,-2917.71032475,0.00022545,2]
[310881053,1704767431764,-11058.861998,0.00022545,2]
[310881054,1704767431776,-857.59365821,0.00022545,2]
[310881055,1704767431805,-3225.18862013,0.00022545,2]
[310881056,1704767431862,-968.12875695,0.00022545,2]
[310881061,1704767437637,-8110.79798229,0.00022545,2]
[310881062,1704767437649,-333.73292943,0.00022545,2]
[310881063,1704767437797,-9306.22680494,0.00022545,2]
[310881064,1704767437907,-25647.95094807,0.00022545,2]
[310881065,1704767437917,-131224.41101588,0.00022546,2]
[310881066,1704767437926,-185.5699508,0.00022548,2]
[310881067,1704767437936,-164.75,0.00022558,2]
[310881068,1704767437945,-153.62973457,0.00022558,2]
[310881069,1704767437955,-499.99,0.00022578,2]
[310881070,1704767437964,-1875.17,0.00022578,2]
[310881071,1704767437974,-158.69,0.00022578,2]
[310881072,1704767437996,-153.62973457,0.00022672,2]
[310881073,1704767438007,-164.75,0.00022674,2]
[310881074,1704767438017,-1634.71,0.00022674,2]
[310881075,1704767438027,-303.76,0.00022674,2]
[310881076,1704767438040,-16714.04287535,0.00022768,2]
[310881077,1704767438050,-153.62973457,0.00022786,2]
[310881078,1704767438059,-164.75,0.0002279,2]
[310881079,1704767438069,-998.34,0.000228,2]
[310881080,1704767438079,-344.7584,0.000228,2]
[310881081,1704767438088,-200.0,0.00022816,2]
[310881082,1704767438098,-609.61,0.00022846,2]
[310881083,1704767438108,-562.17858949,0.00022883,2]
[310881130,1704767438530,-163.6,0.00022894,2]
[310881135,1704767438565,-299.77217281,0.00022898,2]
[310881137,1704767438575,-299.77217274,0.00022898,2]
[310881139,1704767438584,-299.77217274,0.00022899,2]
[310881141,1704767438594,-299.77217274,0.00022899,2]
[310881143,1704767438603,-1010.8568,0.00022899,2]
[310881145,1704767438613,-299.77217274,0.00022899,2]
[310881147,1704767438622,-299.77217274,0.00022899,2]
[310881149,1704767438631,-299.77217274,0.000229,2]
[310881151,1704767438640,-7500.0,0.000229,2]
[310881153,1704767438649,-153.62973457,0.000229,2]
[310881155,1704767438658,-299.77217274,0.000229,2]
[310881157,1704767438668,-20463.68049252,0.000229,2]